bitfinex/quotes_ETHUSD_20251028
["timestamp","ask_amount","ask_price","bid_price","bid_amount"]
[1761650801276,6.67292208,4117.6,4117.5,0.5725]
[1761650801792,2.4278322,4117.6,4117.5,0.5725]
[1761650801998,2.4278322,4117.6,4117.5,1.00775]
[1761650802500,2.4278322,4117.6,4117.5,0.55605]
[1761650802707,2.4278322,4117.6,4117.5,1.00775]
[1761650803396,2.4278322,4117.6,4117.5,4.78775]
[1761650804314,2.4278322,4117.6,4117.5,4.3525]
[1761650805074,2.42855536,4117.7,4117.5,4.3525]
[1761650805274,0.001,4117.8,4117.5,4.3525]
[1761650805580,2.42855274,4117.7,4117.5,4.3525]
[1761650805775,0.001,4117.8,4117.6,0.4517]
[1761650806177,2.4285402,4117.7,4117.6,0.4517]
[1761650806386,2.42856324,4117.7,4117.5,3.9008]
[1761650806600,2.42856324,4117.7,4117.5,4.74258]
[1761650806904,0.001,4117.8,4117.6,0.4517]
[1761650807703,2.4285402,4117.7,4117.6,0.4517]
[1761650808204,2.42859918,4117.6,4117.5,4.29088]
[1761650808874,0.001,4117.8,4117.5,4.29088]
[1761650809203,2.42948655,4117.8,4117.6,3.78]
[1761650809872,0.001,4117.8,4117.6,3.78]
[1761650810073,0.001,4117.8,4117.7,0.4517]
[1761650811003,0.001,4117.8,4117.6,3.78]
[1761650811310,0.001,4117.8,4117.7,0.4517]
[1761650811476,0.001,4117.8,4117.7,0.67811637]
[1761650812775,0.001,4117.8,4117.7,1.12981637]
[1761650813479,0.001,4117.8,4117.7,0.67811637]
[1761650814279,0.001,4117.8,4117.7,1.12981637]
[1761650814705,0.001,4117.8,4117.7,0.67811637]
[1761650816435,0.001,4117.8,4117.7,4.45811637]
[1761650816940,0.001,4117.8,4117.7,12.43563299]
[1761650817103,0.001,4118.3,4118.2,2.42824534]
[1761650817303,0.001,4118.6,4118.5,2.42806847]
[1761650817504,0.001,4118.6,4118.5,7.54962557]
[1761650817716,0.001,4118.6,4118.5,7.97704489]
[1761650818042,0.001,4118.6,4118.5,8.07419912]
[1761650819541,0.001,4118.6,4118.5,2.9769227]
[1761650819743,0.001,4118.6,4118.5,3.88202245]
[1761650821008,0.001,4118.6,4118.5,1.45395398]
[1761650821353,0.001,4118.6,4118.5,3.00120338]
[1761650822618,0.001,4118.6,4118.5,2.9769227]
[1761650822823,2.3047649,4119.5,4118.8,2.42788598]
[1761650824113,2.3047649,4119.5,4118.8,2.87958598]
[1761650824315,2.42737135,4119.7,4118.9,0.4517]
[1761650824543,2.42657135,4119.7,4119.0,2.71573128]
[1761650824850,0.01,4119.8,4119.1,2.42771131]
[1761650825027,2.43732491,4119.8,4119.1,2.64501131]
[1761650826038,2.42736773,4119.7,4119.1,2.64501131]
[1761650826239,2.42736773,4119.7,4119.1,0.2173]
[1761650826631,0.01,4119.8,4119.1,2.64499523]
[1761650826946,2.43732147,4119.8,4119.5,0.1208]
[1761650827330,2.42737593,4119.7,4119.5,0.1208]
[1761650828338,2.42742013,4119.6,4119.5,0.1208]
[1761650829732,0.001,4119.7,4119.5,0.1208]
[1761650830453,0.001,4119.7,4119.6,0.0242742]
[1761650831056,0.001,4119.7,4119.6,6.95495611]
[1761650831367,0.001,4119.7,4119.6,7.68348013]
[1761650831581,0.001,4119.7,4119.6,3.17495611]
[1761650831740,0.001,4119.7,4119.6,3.19923031]
[1761650831946,0.001,4119.7,4119.6,3.29635623]
[1761650832837,0.001,4119.7,4119.6,3.27208203]
[1761650833095,0.001,4119.7,4119.6,3.17495611]
[1761650834344,0.001,4119.7,4119.6,3.19923031]
[1761650837076,0.001,4119.7,4119.6,6.97923031]
[1761650837247,0.001,4119.7,4119.6,6.95495611]
[1761650837460,0.001,4119.7,4119.6,3.17495611]
[1761650837655,0.001,4119.7,4119.6,3.19923031]
[1761650840945,0.001,4119.7,4119.6,3.32003031]
[1761650842188,0.001,4119.7,4119.6,3.29575611]
[1761650846908,0.001,4119.7,4119.6,2.85205611]
[1761650847080,0.001,4119.7,4119.6,0.1228]
[1761650849172,0.0002,4119.7,4119.6,0.1228]
[1761650853175,0.0002,4119.7,4119.6,3.9028]
[1761650863565,0.0002,4119.7,4119.6,0.1228]
[1761650866437,2.42756121,4119.7,4119.6,0.1228]
[1761650867769,2.42756121,4119.7,4119.6,3.9028]
[1761650868066,0.0002,4119.7,4119.6,3.9028]
[1761650869483,0.0002,4119.7,4119.6,4.353]
[1761650869845,0.0002,4119.7,4119.6,3.9028]
[1761650873483,0.0094,4119.8,4119.6,3.9028]
[1761650876170,2.43672586,4119.8,4119.6,3.9028]
[1761650876984,2.42736121,4119.7,4119.6,3.9028]
[1761650877493,2.43672176,4119.8,4119.6,3.9028]
[1761650877661,2.42736121,4119.7,4119.6,3.9028]
[1761650878162,2.4367215,4119.8,4119.6,3.9028]
[1761650879295,0.0094,4119.8,4119.6,3.9028]
[1761650879889,2.43670246,4119.8,4119.6,3.9028]
[1761650880405,2.42736121,4119.7,4119.6,3.9028]
[1761650881193,2.43671429,4119.8,4119.6,3.9028]
[1761650881576,2.42736121,4119.7,4119.6,3.9028]
[1761650881783,2.42836121,4119.7,4119.6,3.9028]
[1761650882174,0.001,4119.7,4119.6,3.9028]
[1761650882673,2.42836121,4119.7,4119.6,3.9028]
[1761650883382,0.001,4119.7,4119.6,3.9028]
[1761650883904,2.42836121,4119.7,4119.6,3.9028]
[1761650884433,2.42836121,4119.7,4119.6,0.002]
[1761650884434,8.29767354,4119.7,4119.6,0.002]
[1761650886023,3.98356121,4119.7,4119.6,0.002]
[1761650897853,3.98276121,4119.7,4119.6,0.002]
[1761650899768,3.98276121,4119.7,4119.6,0.002]
[1761650903052,3.98276121,4119.7,4119.6,0.476]
[1761650903252,0.0002,4119.7,4119.6,0.476]
[1761650903579,0.0002,4119.7,4119.6,0.5968]
[1761650903763,0.0002,4119.7,4119.6,1.18958423]
[1761650905577,0.0002,4119.7,4119.6,0.1228]
[1761650906088,0.0002,4119.7,4119.6,0.5968]
[1761650909294,0.0002,4119.7,4119.6,0.1228]
[1761650909495,2.42756121,4119.7,4119.6,0.1228]
[1761650914918,2.40809599,4119.7,4119.6,0.1228]
[1761650915314,2.40809599,4119.7,4119.6,0.5541]
[1761650917722,2.40909599,4119.7,4119.6,0.5541]
[1761650922125,0.001,4119.7,4119.6,0.5541]
[1761650922422,0.0002,4119.7,4119.6,0.5541]
[1761650934905,0.0002,4119.7,4119.6,2.86072013]
[1761650935256,0.0002,4119.7,4119.6,4.1180662]
[1761650944856,0.0002,4119.7,4119.6,4.2388662]
[1761650946760,0.0002,4119.7,4119.6,3.51034218]
[1761650946936,0.0098,4119.8,4119.7,2.42736121]
[1761650947138,0.0098,4119.8,4119.7,2.85516121]
[1761650947327,0.0098,4119.8,4119.7,3.45829497]
[1761650952378,0.0098,4119.8,4119.7,0.60313376]
[1761650952542,0.0098,4119.8,4119.6,0.1228]
[1761650952744,0.0098,4119.8,4119.6,2.97801947]
[1761650953076,0.0098,4119.8,4119.7,2.42736121]
[1761650953281,0.0098,4119.8,4119.7,2.85516121]
[1761650955585,0.0098,4119.8,4119.7,2.42736121]
[1761650955881,0.0098,4119.8,4119.7,3.35292431]
[1761650957794,0.0098,4119.8,4119.7,0.4977631]
[1761650958078,0.0098,4119.8,4119.7,2.85516121]
[1761650965066,0.0098,4119.8,4119.7,2.87943482]
[1761650968369,0.0098,4119.8,4119.7,2.85516121]
[1761650971293,0.009,4119.8,4119.7,2.85516121]
[1761650980116,0.009,4119.8,4119.7,2.42736121]
[1761650980284,0.009,4119.8,4119.7,2.93483799]
[1761650980484,0.009,4119.8,4119.7,3.38533799]
[1761650981097,0.009,4119.8,4119.7,2.93483799]
[1761650981734,0.009,4119.8,4119.7,3.38533799]
[1761650987995,0.009,4119.8,4119.7,3.4096116]
[1761650988618,0.009,4119.8,4119.7,3.62753398]
[1761650989721,0.009,4119.8,4119.7,3.60326037]
[1761650993954,0.009,4119.8,4119.7,4.03303798]
[1761650995843,0.0082,4119.8,4119.7,4.03303798]
[1761650999753,0.0082,4119.8,4119.7,4.00876437]
[1761651001148,0.0082,4119.8,4119.7,3.60326037]
[1761651001364,0.0082,4119.8,4119.7,4.00876437]
[1761651003473,0.0082,4119.8,4119.7,3.05563799]
[1761651003678,0.0082,4119.8,4119.7,2.54816121]
[1761651004306,0.0082,4119.8,4119.7,3.02293482]
[1761651004439,0.0082,4119.8,4119.7,3.30763882]
[1761651004639,0.0082,4119.8,4119.7,3.42843882]
[1761651004877,0.0082,4119.8,4119.7,5.08075743]
[1761651005078,0.0082,4119.8,4119.7,5.05648382]
[1761651005259,0.0082,4119.8,4119.7,6.22923245]
[1761651005940,0.0082,4119.8,4119.7,5.82372845]
[1761651006146,0.0082,4119.8,4119.7,5.37322845]
[1761651006459,0.0082,4119.8,4119.7,5.84642845]
[1761651006983,0.0082,4119.8,4119.7,5.74930984]
[1761651007169,0.0082,4119.8,4119.7,5.37323481]
[1761651009008,0.0082,4119.8,4119.7,3.81803481]
[1761651011315,0.0082,4119.8,4119.7,4.19578345]
[1761651011838,0.0082,4119.8,4119.7,4.69841077]
[1761651013773,0.0082,4119.8,4119.7,3.69723316]
[1761651013976,0.0082,4119.8,4119.7,3.60010984]
[1761651017116,0.0082,4119.8,4119.7,2.42736121]
[1761651018185,0.0082,4119.8,4119.7,2.87796121]
[1761651018519,0.0082,4119.8,4119.7,2.42736121]
[1761651020101,0.0082,4119.8,4119.6,2.42941906]
[1761651020311,0.0074,4119.8,4119.7,2.42736121]
[1761651023820,0.0074,4119.8,4119.7,2.54816121]
[1761651025005,0.0074,4119.8,4119.7,0.1208]
[1761651025516,0.0074,4119.8,4119.7,2.54816121]
[1761651028728,0.0074,4119.8,4119.7,3.49652403]
[1761651028930,0.0074,4119.8,4119.7,3.92630164]
[1761651029107,0.0074,4119.8,4119.7,4.00016173]
[1761651031729,0.0074,4119.8,4119.7,5.57963534]
[1761651031932,0.0074,4119.8,4119.7,5.55536173]
[1761651040764,0.0074,4119.8,4119.7,5.10476173]
[1761651041268,0.0074,4119.8,4119.7,5.57486173]
[1761651043962,0.0074,4119.8,4119.7,5.10476173]
[1761651044765,0.0066,4119.8,4119.7,5.10476173]
[1761651048076,0.0066,4119.8,4119.7,5.57486173]
[1761651048290,0.0066,4119.8,4119.7,5.10476173]
[1761651051090,0.0066,4119.8,4119.7,5.57486173]
[1761651051455,0.0066,4119.8,4119.7,5.10476173]
[1761651051770,0.0066,4119.8,4119.7,5.57486173]
[1761651052282,0.0066,4119.8,4119.7,3.54956173]
[1761651052479,0.0066,4119.8,4119.7,4.01966173]
[1761651052883,0.0066,4119.8,4119.7,4.88926671]
[1761651053986,0.0066,4119.8,4119.7,4.01966173]
[1761651054190,0.0066,4119.8,4119.7,4.04393534]
[1761651055291,0.0066,4119.8,4119.7,3.33062803]
[1761651055888,0.0066,4119.8,4119.7,3.80072803]
[1761651056601,0.0066,4119.8,4119.7,4.69503138]
[1761651057187,0.0066,4119.8,4119.7,3.82500164]
[1761651057389,0.0066,4119.8,4119.7,3.92211247]
[1761651060499,0.001,4120.0,4119.9,4.38794737]
[1761651060716,0.001,4120.0,4119.9,5.95361431]
[1761651060920,0.001,4120.0,4119.9,6.39944188]
[1761651061805,0.001,4120.0,4119.9,6.49653951]
[1761651065184,0.001,4120.0,4119.9,6.61733951]
[1761651069425,0.0002,4120.0,4119.9,6.61733951]
[1761651070426,0.0002,4120.0,4119.9,9.68297548]
[1761651070730,0.0002,4120.0,4119.9,8.12777548]
[1761651070927,0.0002,4120.0,4119.9,10.55031325]
[1761651071296,0.0002,4120.0,4119.9,10.45321562]
[1761651071715,0.0002,4120.0,4119.9,10.92591562]
[1761651072934,0.0002,4120.0,4119.9,10.45321562]
[1761651073903,0.0002,4120.0,4119.9,9.58587785]
[1761651074636,0.0002,4120.0,4119.9,15.54223815]
[1761651076544,0.0002,4120.0,4119.9,16.01493815]
[1761651077236,0.0002,4120.0,4119.9,15.54223815]
[1761651078245,0.0002,4120.0,4119.9,15.13673415]
[1761651078743,0.0002,4120.0,4119.9,10.45321562]
[1761651080046,0.0002,4120.0,4119.9,9.58587785]
[1761651081331,0.0002,4120.0,4119.9,10.45321562]
[1761651081639,0.0713,4120.0,4119.9,8.89801562]
[1761651081831,0.0713,4120.0,4119.9,8.49251162]
[1761651082342,0.0002,4120.0,4119.9,5.11801562]
[1761651082848,0.0713,4120.0,4119.9,5.11801562]
[1761651083050,0.0002,4120.0,4119.9,5.11801562]
[1761651083338,0.0713,4120.0,4119.9,5.11801562]
[1761651086985,0.0713,4120.0,4119.9,0.1208]
[1761651093749,0.0705,4120.0,4119.9,0.1208]
[1761651101275,2.49768446,4120.0,4119.9,0.1208]
[1761651101577,2.49768446,4120.0,4119.8,0.002]
[1761651101578,0.0705,4120.0,4119.8,0.002]
[1761651101777,1.6257,4119.9,4119.8,0.002]
[1761651102154,4.05294337,4119.9,4119.8,0.002]
[1761651102361,4.17958903,4119.9,4119.8,0.002]
[1761651102886,1.75234566,4119.9,4119.8,0.002]
[1761651103090,4.17958903,4119.9,4119.8,0.002]
[1761651103300,1.75234566,4119.9,4119.8,0.002]
[1761651103659,4.17958903,4119.9,4119.8,0.002]
[1761651105391,1.75234566,4119.9,4119.8,0.002]
[1761651105862,4.17958903,4119.9,4119.8,0.002]
[1761651106063,0.001,4120.0,4119.8,0.1228]
[1761651106269,0.0715,4120.0,4119.8,0.1228]
[1761651107794,1.6267,4120.0,4119.8,0.1228]
[1761651108176,0.0705,4119.9,4119.8,0.1228]
[1761651108598,0.12664566,4119.9,4119.8,0.1228]
[1761651108767,0.19714566,4119.9,4119.8,0.1228]
[1761651112619,1.5562,4120.0,4119.8,0.1228]
[1761651112620,0.001,4120.0,4119.8,0.1228]
[1761651113487,0.0715,4120.0,4119.8,0.1228]
[1761651114022,1.6267,4120.0,4119.8,0.1228]
[1761651114528,0.001,4120.0,4119.8,0.1228]
[1761651115496,2.42724337,4119.9,4119.8,0.1228]
[1761651117258,4.05294337,4119.9,4119.8,0.1228]
[1761651117862,8.29571232,4119.9,4119.8,0.1228]
[1761651118222,8.29491232,4119.9,4119.8,0.1228]
[1761651118436,4.05214337,4119.9,4119.8,0.1228]
[1761651118735,8.29491232,4119.9,4119.8,0.1228]
[1761651119167,3.98164337,4119.9,4119.8,0.1228]
[1761651119756,0.001,4120.0,4119.8,0.1228]
[1761651119933,0.001,4120.0,4119.9,0.46967243]
[1761651120140,0.001,4120.0,4119.9,0.48372414]
[1761651120370,0.001,4120.0,4119.8,0.1228]
[1761651120665,0.001,4120.0,4119.9,0.4454]
[1761651122478,0.001,4120.0,4119.8,0.1228]
[1761651122788,0.001,4120.0,4119.9,0.4454]
[1761651127565,0.001,4120.0,4119.9,3.39894737]
[1761651127877,0.001,4120.0,4119.9,5.06004828]
[1761651128050,0.001,4120.0,4119.9,5.03577585]
[1761651128251,0.001,4120.0,4119.9,4.1659463]
[1761651128887,0.001,4120.0,4119.9,4.19021873]
[1761651129279,0.001,4120.0,4119.9,4.1659463]
[1761651129455,0.001,4120.0,4119.9,1.73870293]
[1761651129856,0.001,4120.0,4119.9,3.39894737]
[1761651130884,0.001,4120.0,4119.9,0.971704]
[1761651131084,0.001,4120.0,4119.9,0.4454]
[1761651135966,2.42724337,4119.9,4119.8,0.002]
[1761651136765,2.42724337,4119.9,4119.8,0.4337]
[1761651138221,0.001,4120.0,4119.8,0.4337]
[1761651140433,0.001,4120.0,4119.8,2.86099351]
[1761651140588,0.001,4120.0,4119.9,0.28629935]
[1761651140789,0.001,4120.0,4119.9,3.14524272]
[1761651140990,0.001,4120.0,4119.9,0.83879935]
[1761651142205,0.001,4120.0,4119.9,3.26604272]
[1761651142908,0.0002,4120.0,4119.9,3.26604272]
[1761651144020,0.0002,4120.0,4119.9,0.83879935]
[1761651144181,0.0002,4120.0,4119.9,3.26604272]
[1761651144715,0.0002,4120.0,4119.9,3.67154672]
[1761651145893,0.0002,4120.0,4119.9,3.69581915]
[1761651146218,0.0002,4120.0,4119.9,3.67154672]
[1761651146407,0.0002,4120.0,4119.9,3.69581915]
[1761651146981,0.0002,4120.0,4119.9,3.67154672]
[1761651147210,0.0002,4120.0,4119.9,3.76865542]
[1761651147694,0.0002,4120.0,4119.9,3.79292785]
[1761651149383,0.0002,4120.0,4119.9,4.6627574]
[1761651149621,0.0002,4120.0,4119.9,4.63848497]
[1761651151192,0.0002,4120.0,4119.9,3.76865542]
[1761651151919,0.0002,4120.0,4119.9,4.63848497]
[1761651152584,0.0002,4120.0,4119.9,3.76865542]
[1761651158440,0.0002,4120.0,4119.9,4.6627574]
[1761651158655,0.0002,4120.0,4119.9,3.79292785]
[1761651159322,0.0002,4120.0,4119.9,3.76865542]
[1761651163862,0.001,4120.4,4120.3,6.20480774]
[1761651164161,0.001,4120.4,4120.3,6.86583891]
[1761651164312,0.001,4120.4,4120.3,7.43043891]
[1761651164508,0.001,4120.4,4120.3,7.52753559]
[1761651167152,0.0002,4120.4,4120.3,7.52753559]
[1761651167513,0.0002,4120.4,4120.3,8.39519486]
[1761651168318,0.0002,4120.4,4120.3,7.52753559]
[1761651168557,0.0002,4120.4,4120.3,7.93303959]
[1761651168763,0.0002,4120.4,4120.3,9.23375151]
[1761651169750,0.001,4121.4,4120.3,9.23375151]
[1761651169751,0.001,4121.4,4120.6,6.60793504]
[1761651170046,0.001,4121.4,4120.6,13.39990331]
[1761651170350,0.001,4121.4,4120.6,13.84370331]
[1761651170512,0.001,4121.4,4120.6,21.90599174]
[1761651170713,0.001,4121.4,4120.6,21.0379003]
[1761651171042,0.001,4121.4,4120.6,25.64679484]
[1761651171812,0.001,4121.4,4120.6,25.52493328]
[1761651172020,0.001,4121.2,4120.6,25.52493328]
[1761651173220,1e-08,4120.9,4120.8,2.83221725]
[1761651173435,1e-08,4120.9,4120.8,7.01249371]
[1761651173639,1e-08,4120.9,4120.8,9.16597035]
[1761651173834,1e-08,4120.9,4120.8,14.34604627]
[1761651174074,1e-08,4120.9,4120.8,12.6121025]
[1761651177540,1e-08,4120.9,4120.8,12.36783847]
[1761651178136,0.001,4121.2,4121.1,4.3872406]
[1761651178341,0.001,4121.2,4121.1,6.89966978]
[1761651178553,0.001,4121.2,4121.1,7.46426978]
[1761651178758,0.001,4121.2,4121.1,7.56133583]
[1761651179151,0.001,4121.2,4121.1,11.33693582]
[1761651183650,0.001,4121.2,4121.1,16.41994569]
[1761651184249,0.001,4121.2,4121.1,17.28419117]
[1761651184444,0.011,4121.8,4121.7,2.83168737]
[1761651184758,0.011,4121.8,4121.7,7.2647161]
[1761651184959,0.011,4121.8,4121.7,7.3855161]
[1761651187559,0.0815,4121.8,4121.7,6.72508736]
[1761651188276,0.011,4121.8,4121.7,6.72508736]
[1761651190353,0.0815,4121.8,4121.7,6.72508736]
[1761651191753,0.0102,4121.8,4121.7,6.72508736]
[1761651192353,0.0807,4121.8,4120.7,2.42676934]
[1761651192670,0.1777948,4121.8,4120.7,2.42677215]
[1761651192854,2.42628195,4121.6,4120.8,0.405504]
[1761651193058,0.0705,4121.7,4120.6,2.42881285]
[1761651193256,2.42632363,4121.5,4120.6,2.42881285]
[1761651193454,2.42632363,4121.5,4120.7,2.8322533]
[1761651193790,0.0705,4121.4,4120.8,2.42671184]
[1761651193953,0.79871101,4121.4,4120.8,2.42671184]
[1761651194464,0.0705,4121.3,4120.8,2.42671184]
[1761651194853,0.0705,4121.3,4120.6,0.407504]
[1761651195181,0.0705,4121.3,4120.8,2.83216449]
[1761651195182,0.79871101,4121.3,4120.8,2.83216449]
[1761651195383,0.0102,4121.8,4120.8,0.93159766]
[1761651195590,0.0705,4121.6,4121.3,0.405504]
[1761651196977,0.0705,4121.6,4121.3,2.42640093]
[1761651197289,0.0705,4121.6,4121.3,0.405504]
[1761651197789,0.0705,4121.6,4121.3,2.42641438]
[1761651198975,0.0102,4121.8,4121.3,2.42641438]
[1761651199287,0.0102,4121.8,4121.6,2.42622614]
[1761651199463,0.0102,4121.8,4121.7,3.77259999]
[1761651200988,0.0102,4121.8,4121.7,3.79686182]
[1761651201505,0.0102,4121.8,4121.7,6.60428736]
[1761651201803,0.0102,4121.8,4121.7,7.03338736]
[1761651201954,0.0102,4121.8,4121.7,8.574082]
[1761651202370,0.0102,4121.8,4121.7,8.694882]
[1761651203069,0.0102,4121.8,4121.7,8.265782]
[1761651205292,0.0102,4121.8,4121.7,8.694882]
[1761651206695,0.0102,4121.8,4121.7,8.574082]
[1761651207856,0.0102,4121.8,4121.7,8.144982]
[1761651208096,0.0102,4121.8,4121.7,8.574082]
[1761651210999,0.0102,4121.8,4121.7,9.43835243]
[1761651213676,0.001,4121.9,4121.8,6.59402849]
[1761651213910,0.001,4121.9,4121.8,9.37967379]
[1761651214888,0.001,4121.9,4121.8,10.24394422]
[1761651215999,0.001,4121.9,4121.8,9.37967379]
[1761651216200,0.0002,4121.9,4121.8,9.37967379]
[1761651216398,0.0002,4121.9,4121.8,10.36731623]
[1761651216604,0.0002,4121.9,4121.8,17.70993782]
[1761651216799,0.0002,4121.9,4121.8,19.44388159]
[1761651217109,0.0002,4121.9,4121.8,18.04988079]
[1761651217311,1e-08,4122.4,4122.0,0.2429]
[1761651217515,1e-08,4122.4,4122.3,9.69514411]
[1761651217880,1e-08,4122.4,4122.3,10.16364411]
[1761651218407,1e-08,4122.4,4122.3,11.46164232]
[1761651220297,1e-08,4122.4,4122.3,10.16364411]
[1761651221988,0.03190001,4123.5,4123.3,0.405504]
[1761651222308,0.0319,4123.4,4123.3,6.59310791]
[1761651222629,0.0319,4123.4,4123.3,4.16790399]
[1761651222813,0.0319,4123.4,4123.3,6.5931459]
[1761651223012,0.03190001,4123.5,4123.3,6.5931459]
[1761651223323,0.06380001,4123.5,4123.3,4.16790399]
[1761651223622,0.03190001,4123.5,4123.3,3.76239999]
[1761651223988,0.06380001,4123.5,4123.3,3.76239999]
[1761651224588,0.03290001,4123.5,4123.3,3.76239999]
[1761651224800,0.0319,4123.4,4123.3,4.16790399]
[1761651225123,0.0319,4123.4,4123.3,3.76239999]
[1761651226191,2.45802586,4123.5,4123.3,3.76239999]
[1761651226192,0.03290001,4123.5,4123.3,3.76239999]
[1761651226620,0.03290001,4123.5,4123.4,0.405504]
[1761651226823,0.03290001,4123.5,4123.4,2.8306871]
[1761651227125,0.03290001,4123.5,4123.4,0.405504]
[1761651227424,0.03290001,4123.5,4123.4,2.9514871]
[1761651228210,0.001,4123.5,4123.4,2.9514871]
[1761651229906,0.001,4123.5,4123.4,0.526304]
[1761651231206,0.001,4123.5,4123.4,4.28870399]
[1761651232002,0.0329,4123.5,4123.4,3.88319999]
[1761651232202,0.001,4123.5,4123.4,3.88319999]
[1761651232999,0.0329,4123.5,4123.4,3.88319999]
[1761651233194,0.001,4123.5,4123.4,3.88319999]
[1761651234321,0.0329,4123.5,4123.4,3.88319999]
[1761651235050,0.73781174,4123.8,4123.4,3.88319999]
[1761651235242,0.0319,4123.7,4123.4,3.88319999]
[1761651235552,0.0319,4123.7,4123.4,3.76239999]
[1761651235756,2.45690666,4123.7,4123.6,0.1208]
[1761651237154,2.45690666,4123.7,4123.6,3.88319999]
[1761651238148,0.0319,4123.7,4123.6,3.88319999]
[1761651238851,2.45690666,4123.7,4123.6,3.88319999]
[1761651239350,0.0319,4123.7,4123.6,3.88319999]
[1761651239553,3.16278637,4123.8,4123.6,3.88319999]
[1761651240653,3.16198637,4123.8,4123.6,3.88319999]
[1761651240873,2.42500666,4123.7,4123.6,3.88319999]
[1761651241158,3.16197727,4123.8,4123.6,3.88319999]
[1761651241752,2.42500666,4123.7,4123.6,3.88319999]
[1761651242144,2.45690666,4123.7,4123.6,3.88319999]
[1761651242343,2.45790666,4123.7,4123.6,3.88319999]
[1761651244780,3.18572723,4123.7,4123.6,3.88319999]
[1761651245327,3.18572723,4123.7,4123.6,3.76239999]
[1761651245521,2.42512428,4123.5,4123.4,0.1208]
[1761651246328,2.54592428,4123.5,4123.4,0.1208]
[1761651247630,0.1208,4123.5,4123.4,0.1208]
[1761651247933,2.42604265,4123.7,4123.4,0.1208]
[1761651248775,0.001,4123.7,4123.4,0.1208]
[1761651248960,2.42600995,4123.7,4123.4,0.1208]
[1761651249360,0.001,4123.7,4123.4,0.1208]
[1761651249552,0.001,4123.7,4123.4,2.54596061]
[1761651250066,0.001,4123.7,4123.4,0.1208]
[1761651250750,0.001,4123.7,4123.4,2.54597602]
[1761651251779,0.001,4123.7,4123.5,3.76239999]
[1761651254191,0.0319,4123.6,4123.3,0.002]
[1761651254355,4.23537322,4123.7,4123.3,0.002]
[1761651254356,6.66038029,4123.7,4123.3,0.002]
[1761651254688,2.42518068,4123.5,4123.3,0.002]
[1761651255051,0.0319,4123.6,4123.3,0.002]
[1761651255394,2.42514248,4123.5,4123.3,0.002]
[1761651256051,0.001,4123.7,4123.3,0.002]
[1761651256252,0.0329,4123.7,4123.3,0.002]
[1761651256553,2.42516508,4123.5,4123.3,0.002]
[1761651259265,2.42506547,4123.6,4123.3,0.002]
[1761651259600,2.4251831,4123.4,4123.3,0.002]
[1761651261762,2.4251358,4123.5,4123.3,0.002]
[1761651262265,2.42506547,4123.6,4123.3,0.002]
[1761651262465,2.4251831,4123.4,4123.3,0.002]
[1761651262973,2.42507835,4123.6,4123.3,0.002]
[1761651263301,0.001,4123.7,4123.3,2.86103023]
[1761651263469,0.001,4123.7,4123.4,2.42516017]
[1761651263668,0.001,4123.7,4123.4,2.85896017]
[1761651264086,0.001,4123.7,4123.6,0.1208]
[1761651265106,0.0002,4123.7,4123.6,0.1208]
[1761651266411,0.0002,4123.7,4123.6,0.5546]
[1761651266984,0.0002,4123.7,4123.6,0.1208]
[1761651267190,0.0002,4123.7,4123.6,2.54586547]
[1761651267590,0.0002,4123.7,4123.6,2.97966547]
[1761651267991,0.0002,4123.7,4123.6,0.5546]
[1761651268808,0.0002,4123.7,4123.6,2.54586547]
[1761651269007,0.0002,4123.7,4123.6,2.97966547]
[1761651269511,0.0002,4123.7,4123.6,6.74206546]
[1761651269876,0.0002,4123.7,4123.6,3.88319999]
[1761651270078,2.45710666,4123.7,4123.6,0.1208]
[1761651270414,0.0002,4123.7,4123.6,0.1208]
[1761651270916,2.42520666,4123.7,4123.6,0.1208]
[1761651277634,0.0002,4123.7,4123.6,0.1208]
[1761651277787,2.42520666,4123.7,4123.6,0.1208]
[1761651280929,2.42520666,4123.7,4123.6,0.1228]
[1761651285832,2.45710666,4123.7,4123.6,0.1228]
[1761651286611,2.42520666,4123.7,4123.6,0.1228]
[1761651289729,2.42440666,4123.7,4123.6,0.1228]
[1761651290237,6.65877988,4123.7,4123.6,0.1228]
[1761651291915,4.23437322,4123.7,4123.6,0.1228]
[1761651292418,0.0102,4123.8,4123.6,0.5576]
[1761651292619,0.0102,4123.8,4123.7,0.4348]
[1761651294831,0.0102,4123.8,4123.7,1.23011162]
[1761651298736,0.0102,4123.8,4123.7,4.99251161]
[1761651298938,0.0102,4123.8,4123.7,4.55771161]
[1761651300251,0.0102,4123.8,4123.7,4.99251161]
[1761651301031,0.0102,4123.8,4123.7,4.55771161]
[1761651302352,2.43514786,4123.8,4123.7,3.88319999]
[1761651303319,0.0102,4123.8,4123.7,3.88319999]
[1761651303742,0.0102,4123.8,4123.7,4.31799999]
[1761651304132,0.0102,4123.8,4123.7,3.88319999]
[1761651304551,0.0102,4123.8,4123.7,0.1208]
[1761651305155,2.43514786,4123.8,4123.7,0.1208]
[1761651306044,0.0102,4123.8,4123.7,0.1208]
[1761651307446,0.0102,4123.8,4123.7,0.5563]
[1761651307757,2.43514786,4123.8,4123.7,0.5563]
[1761651308931,2.43514786,4123.8,4123.7,0.1208]
[1761651310127,2.42500666,4123.7,4123.6,3.76439999]
[1761651310366,2.42500666,4123.7,4123.6,0.002]
[1761651310543,2.43514786,4123.8,4123.6,0.002]
[1761651310734,2.42500666,4123.7,4123.6,0.002]
[1761651312254,0.0102,4123.8,4123.6,0.002]
[1761651312568,2.43515853,4123.8,4123.6,0.4375]
[1761651312771,2.42500666,4123.7,4123.6,0.4375]
[1761651313072,2.42500666,4123.7,4123.6,0.002]
[1761651313666,2.45690666,4123.7,4123.6,0.002]
[1761651314228,2.45610666,4123.7,4123.6,0.002]
[1761651322475,0.0102,4123.8,4123.6,0.002]
[1761651322678,2.43515376,4123.8,4123.6,0.002]